fUSD/lending_fUSD_20240612
["ID","MTS","AMOUNT","RATE_DAILY","PERIOD"]
[329215641,1718185845433,-530.25688651,0.00019178,2]
[329215642,1718185845443,-518.41088644,0.00019178,2]
[329215645,1718185845454,-500.0,0.00019178,2]
[329215647,1718185845465,-500.0,0.00019178,2]
[329215648,1718185845475,-513.16415202,0.00019178,2]
[329215650,1718185845485,-616.7,0.00019178,2]
[329215652,1718185845496,-500.0,0.00019178,2]
[329215654,1718185845506,-500.0,0.00019178,2]
[329215656,1718185845517,-518.37318328,0.00019178,2]
[329215658,1718185845527,-500.0,0.00019178,2]
[329215660,1718185845537,-500.0,0.00019178,2]
[329215662,1718185845547,-592.02626947,0.00019178,2]
[329215664,1718185845557,-769.59,0.00019178,2]
[329215666,1718185845568,-514.66762318,0.00019178,2]
[329215668,1718185845578,-519.16411795,0.00019178,2]
[329215670,1718185845588,-500.0,0.00019178,2]
[329215672,1718185845599,-500.0,0.00019178,2]
[329215675,1718185845609,-500.0,0.00019178,2]
[329215677,1718185845620,-500.0,0.00019178,2]
[329215680,1718185845630,-500.0,0.00019178,2]
[329215682,1718185845640,-500.0,0.00019178,2]
[329215684,1718185845650,-500.0,0.00019178,2]
[329215686,1718185845660,-500.0,0.00019178,2]
[329215688,1718185845671,-500.0,0.00019178,2]
[329215690,1718185845681,-500.0,0.00019178,2]
[329215692,1718185845692,-563.56,0.00019178,2]
[329215694,1718185845702,-523.23855938,0.00019178,2]
[329215696,1718185845713,-500.0,0.00019178,2]
[329215698,1718185845724,-500.0,0.00019178,2]
[329215700,1718185845735,-712.58,0.00019178,2]
[329215702,1718185845745,-177.96552191,0.00019178,2]
[329215704,1718185845755,-518.62038156,0.00019178,2]
[329215706,1718185845766,-500.0,0.00019178,2]
[329215708,1718185845776,-500.0,0.00019178,2]
[329215710,1718185845786,-500.0,0.00019178,2]
[329215712,1718185845797,-500.0,0.00019178,2]
[329215714,1718185845808,-657.51,0.00019178,2]
[329215716,1718185845819,-500.0,0.00019178,2]
[329215718,1718185845830,-500.0,0.00019178,2]
[329215720,1718185845841,-1663.16,0.00019178,2]
[329215721,1718185845852,-515.12972072,0.00019178,2]
[329215722,1718185845862,-500.0,0.00019178,2]
[329215723,1718185845872,-504.92712431,0.00019178,2]
[329215724,1718185845884,-500.0,0.00019178,2]
[329215725,1718185845895,-4313.61,0.00019178,2]
[329215726,1718185845905,-524.90538874,0.00019178,2]
[329215727,1718185845916,-500.0,0.00019178,2]
[329215728,1718185845926,-844.37,0.00019178,2]
[329215729,1718185845938,-500.0,0.00019178,2]
[329215730,1718185845949,-548.75603293,0.00019178,2]
[329215731,1718185845959,-532.58,0.00019178,2]
[329215732,1718185845969,-1497.28,0.00019178,2]
[329215733,1718185845983,-536.31168264,0.00019178,2]
[329215734,1718185845994,-1218.82,0.00019178,2]
[329215735,1718185846004,-508.20218482,0.00019178,2]
[329215736,1718185846014,-500.0,0.00019178,2]
[329215738,1718185846026,-500.0,0.00019178,2]
[329215740,1718185846036,-550.43,0.00019178,2]
[329215742,1718185846047,-500.0,0.00019178,2]
[329215744,1718185846061,-500.0,0.00019178,2]
[329215746,1718185846072,-506.06514115,0.00019178,2]
[329215748,1718185846099,-500.0,0.00019178,2]
[329215750,1718185846110,-506.05667864,0.00019178,2]
[329215752,1718185846121,-799.49,0.00019178,2]
[329215754,1718185846133,-793.78,0.00019178,2]
[329215756,1718185846144,-505.71714151,0.00019178,2]
[329215758,1718185846155,-500.0,0.00019178,2]
[329215760,1718185846166,-500.0,0.00019178,2]
[329215762,1718185846177,-500.0,0.00019178,2]
[329215764,1718185846187,-552.52,0.00019178,2]
[329215766,1718185846198,-4109.6,0.00019178,2]
[329215768,1718185846209,-530.54766845,0.00019178,2]
[329215770,1718185846221,-500.0,0.00019178,2]
[329215792,1718185846445,-1055.47,0.00019178,2]
[329215794,1718185846456,-505.7318399,0.00019178,2]
[329215796,1718185846467,-897.13,0.00019178,2]
[329215798,1718185846478,-543.28,0.00019178,2]
[329215800,1718185846489,-1296.61,0.00019178,2]
[329215802,1718185846500,-500.0,0.00019178,2]
[329215804,1718185846512,-500.0,0.00019178,2]
[329215806,1718185846523,-500.0,0.00019178,2]
[329215808,1718185846535,-809.93,0.00019178,2]
[329215810,1718185846546,-6405.02,0.00019178,2]
[329215812,1718185846557,-768.11,0.00019178,2]
[329215814,1718185846568,-500.0,0.00019178,2]
[329215816,1718185846579,-507.30447875,0.00019178,2]
[329215818,1718185846590,-500.0,0.00019178,2]
[329215820,1718185846601,-504.93378801,0.00019178,2]
[329215822,1718185846612,-516.22615056,0.00019178,2]
[329215824,1718185846624,-2036.48,0.00019178,2]
[329215827,1718185846637,-502.42368638,0.00019178,2]
[329215829,1718185846648,-500.0,0.00019178,2]
[329215831,1718185846658,-2920.36,0.00019178,2]
[329215832,1718185846669,-524.38353111,0.00019178,2]
[329215834,1718185846680,-500.0,0.00019178,2]
[329215836,1718185846691,-506.66532128,0.00019178,2]
[329215839,1718185846702,-500.0,0.00019178,2]
[329215841,1718185846713,-500.0,0.00019178,2]
[329215842,1718185846724,-339.27912079,0.00019178,2]
[329215844,1718185846735,-207.08446305,0.00019178,2]
[329215846,1718185846747,-500.0,0.00019178,2]
[329215848,1718185846757,-2762.9,0.00019178,2]
[329215850,1718185846769,-514.29186605,0.00019178,2]
[329215852,1718185846780,-549.16456101,0.00019178,2]
[329215854,1718185846791,-509.502812,0.00019178,2]
[329215857,1718185846802,-503.23602539,0.00019178,2]
[329215859,1718185846813,-500.0,0.00019178,2]
[329215860,1718185846824,-500.0,0.00019178,2]
[329215863,1718185846834,-505.91616701,0.00019178,2]
[329215864,1718185846845,-550.02250703,0.00019178,2]
[329215866,1718185846856,-500.0,0.00019178,2]
[329215868,1718185846867,-708.79,0.00019178,2]
[329215870,1718185846878,-500.0,0.00019178,2]
[329215872,1718185846889,-500.0,0.00019178,2]
[329215874,1718185846900,-500.0,0.00019178,2]
[329215876,1718185846910,-521.61493398,0.00019178,2]
[329215878,1718185846920,-157.60096,0.00019178,2]
[329215880,1718185846931,-505.64516401,0.00019178,2]
[329215882,1718185846941,-515.28174236,0.00019178,2]
[329215884,1718185846951,-522.43373966,0.00019178,2]
[329215886,1718185846961,-514.17245947,0.00019178,2]
[329215888,1718185846976,-531.03395362,0.00019178,2]
[329215890,1718185846987,-500.0,0.00019178,2]
[329215892,1718185846999,-406.04801447,0.00019178,2]
[329215894,1718185847010,-500.0,0.00019178,2]
[329215896,1718185847022,-1021.06,0.00019178,2]
[329215898,1718185847033,-510.73978766,0.00019178,2]
[329215900,1718185847044,-500.0,0.00019178,2]
[329215902,1718185847058,-500.0,0.00019178,2]
[329215905,1718185847069,-500.0,0.00019178,2]
[329215907,1718185847079,-500.0,0.00019178,2]
[329215909,1718185847106,-500.0,0.00019178,2]
[329215911,1718185847117,-500.0,0.00019178,2]
[329215913,1718185847127,-500.0,0.00019178,2]
[329215914,1718185847139,-500.0,0.00019178,2]
[329215917,1718185847150,-500.0,0.00019178,2]
[329215919,1718185847160,-1191.19,0.00019178,2]
[329215921,1718185847171,-530.64954924,0.00019178,2]
[329215923,1718185847181,-500.0,0.00019178,2]
[329215925,1718185847192,-543.28487192,0.00019178,2]
[329215927,1718185847202,-500.0,0.00019178,2]
[329215929,1718185847212,-500.0,0.00019178,2]
[329215931,1718185847223,-502.89750854,0.00019178,2]
[329215933,1718185847233,-500.0,0.00019178,2]
[329215935,1718185847244,-500.0,0.00019178,2]
[329215937,1718185847254,-500.0,0.00019178,2]
[329215938,1718185847264,-2756.75,0.00019178,2]
[329215941,1718185847275,-761.22,0.00019178,2]
[329215943,1718185847285,-510.58544795,0.00019178,2]
[329215945,1718185847296,-152.1174,0.00019178,2]
[329215947,1718185847306,-743.07,0.00019178,2]
[329215949,1718185847317,-683.7,0.00019178,2]
[329215951,1718185847327,-513.74873402,0.00019178,2]
[329215953,1718185847337,-515.05,0.00019178,2]
[329215955,1718185847348,-506.87550695,0.00019178,2]
[329215956,1718185847358,-543.87278809,0.00019178,2]
[329215959,1718185847369,-523.57371493,0.00019178,2]
[329215961,1718185847379,-1876.75,0.00019178,2]
[329215963,1718185847389,-1604.18,0.00019178,2]
[329215965,1718185847400,-790.24,0.00019178,2]
[329215967,1718185847411,-500.0,0.00019178,2]
[329215969,1718185847421,-500.0,0.00019178,2]
[329215971,1718185847432,-998.7,0.00019178,2]
[329215973,1718185847442,-500.0,0.00019178,2]
[329215975,1718185847453,-520.52006236,0.00019178,2]
[329215976,1718185847464,-500.0,0.00019178,2]
[329215978,1718185847475,-511.22082456,0.00019178,2]
[329215981,1718185847486,-500.0,0.00019178,2]
[329215983,1718185847496,-518.82124152,0.00019178,2]
[329215984,1718185847507,-500.0,0.00019178,2]
[329215986,1718185847518,-500.0,0.00019178,2]
[329215988,1718185847529,-359.45750363,0.00019178,2]
[329215989,1718185847540,-520.65718818,0.00019178,2]
[329215991,1718185847551,-500.0,0.00019178,2]
[329215993,1718185847563,-538.52186123,0.00019178,2]
[329215995,1718185847574,-500.0,0.00019178,2]
[329215997,1718185847584,-500.0,0.00019178,2]
[329215999,1718185847594,-500.0,0.00019178,2]
[329216001,1718185847605,-975.94,0.00019178,2]
[329216003,1718185847616,-500.0,0.00019178,2]
[329216005,1718185847626,-546.90069799,0.00019178,2]
[329216007,1718185847638,-500.0,0.00019178,2]
[329216009,1718185847648,-622.36642038,0.00019178,2]
[329216011,1718185847659,-798.24,0.00019178,2]
[329216013,1718185847669,-500.0,0.00019178,2]
[329216015,1718185847679,-611.52,0.00019178,2]
[329216017,1718185847690,-500.0,0.00019178,2]
[329216019,1718185847701,-500.0,0.00019178,2]
[329216021,1718185847711,-833.49,0.00019178,2]
[329216023,1718185847721,-875.83,0.00019178,2]
[329216025,1718185847732,-500.0,0.00019178,2]
[329216027,1718185847742,-500.0,0.00019178,2]
[329216029,1718185847753,-517.23254451,0.00019178,2]
[329216031,1718185847763,-500.0,0.00019178,2]
[329216033,1718185847774,-500.0,0.00019178,2]
[329216035,1718185847785,-500.0,0.00019178,2]
[329216037,1718185847795,-1061.9,0.00019178,2]
[329216039,1718185847805,-500.0,0.00019178,2]
[329216041,1718185847815,-326.74064411,0.00019178,2]
[329216043,1718185847825,-151.0,0.00019178,2]
[329216045,1718185847836,-500.0,0.00019178,2]
[329216047,1718185847846,-500.0,0.00019178,2]
[329216049,1718185847857,-500.0,0.00019178,2]
[329216051,1718185847867,-500.0,0.00019178,2]
[329216053,1718185847877,-500.0,0.00019178,2]
[329216055,1718185847889,-500.0,0.00019178,2]
[329216057,1718185847900,-500.0,0.00019178,2]
[329216059,1718185847911,-500.0,0.00019178,2]
[329216061,1718185847921,-638.1,0.00019178,2]
[329216063,1718185847931,-500.0,0.00019178,2]
[329216065,1718185847941,-500.0,0.00019178,2]
[329216067,1718185847951,-444.28159791,0.00019178,2]
[329216069,1718185847962,-500.0,0.00019178,2]
[329216071,1718185847977,-609.2,0.00019178,2]
[329216073,1718185847986,-500.0,0.00019178,2]
[329216075,1718185847997,-500.0,0.00019178,2]
[329216077,1718185848007,-500.0,0.00019178,2]
[329216079,1718185848018,-500.0,0.00019178,2]
[329216081,1718185848028,-500.0,0.00019178,2]
[329216083,1718185848039,-500.0,0.00019178,2]
[329216085,1718185848050,-500.0,0.00019178,2]
[329216087,1718185848060,-500.0,0.00019178,2]
[329216089,1718185848072,-500.0,0.00019178,2]
[329216091,1718185848092,-617.77,0.00019178,2]
[329216094,1718185848111,-370.63109667,0.00019178,2]
[329216096,1718185848121,-500.0,0.00019178,2]
[329216098,1718185848131,-500.0,0.00019178,2]
[329216100,1718185848142,-566.19,0.00019178,2]
[329216102,1718185848153,-500.0,0.00019178,2]
[329216104,1718185848164,-587.52,0.00019178,2]
[329216105,1718185848174,-500.0,0.00019178,2]
[329216108,1718185848184,-2086.81,0.00019178,2]
[329216109,1718185848194,-500.0,0.00019178,2]
[329216112,1718185848205,-500.0,0.00019178,2]
[329216113,1718185848215,-500.0,0.00019178,2]
[329216116,1718185848225,-500.65663207,0.00019178,2]
[329216117,1718185848235,-2541.52,0.00019178,2]
[329216120,1718185848246,-840.54,0.00019178,2]
[329216121,1718185848255,-500.0,0.00019178,2]
[329216123,1718185848266,-500.0,0.00019178,2]
[329216126,1718185848276,-500.0,0.00019178,2]
[329216127,1718185848286,-500.0,0.00019178,2]
[329216129,1718185848296,-500.0,0.00019178,2]
[329216131,1718185848306,-861.93,0.00019178,2]
[329216133,1718185848316,-271.34762197,0.00019178,2]
[329216135,1718185848326,-501.02924678,0.00019178,2]
[329216137,1718185848337,-500.0,0.00019178,2]
[329216139,1718185848347,-500.0,0.00019178,2]
[329216141,1718185848358,-507.95643528,0.00019178,2]
[329216143,1718185848368,-653.36,0.00019178,2]
[329216145,1718185848379,-500.0,0.00019178,2]
[329216147,1718185848391,-1513.9,0.00019178,2]
[329216149,1718185848401,-1430.79,0.00019178,2]
[329216151,1718185848411,-500.0,0.00019178,2]
[329216153,1718185848421,-536.8069857,0.00019178,2]
[329216156,1718185848432,-500.0,0.00019178,2]
[329216158,1718185848442,-1116.87,0.00019178,2]
[329216159,1718185848454,-500.0,0.00019178,2]
[329216161,1718185848464,-500.0,0.00019178,2]
[329216163,1718185848474,-1680.63,0.00019178,2]
[329216166,1718185848485,-2401.2,0.00019178,2]
[329216167,1718185848495,-500.0,0.00019178,2]
[329216169,1718185848505,-500.0,0.00019178,2]
[329216171,1718185848516,-500.0,0.00019178,2]
[329216174,1718185848527,-500.0,0.00019178,2]
[329216175,1718185848537,-562.19,0.00019178,2]
[329216178,1718185848548,-510.028386,0.00019178,2]
[329216179,1718185848559,-500.0,0.00019178,2]
[329216181,1718185848569,-500.0,0.00019178,2]
[329216183,1718185848579,-1223.41,0.00019178,2]
[329216185,1718185848590,-982.45,0.00019178,2]
[329216187,1718185848600,-1057.64,0.00019178,2]
[329216189,1718185848610,-807.87,0.00019178,2]
[329216192,1718185848624,-500.0,0.00019178,2]
[329216194,1718185848637,-500.0,0.00019178,2]
[329216196,1718185848647,-500.0,0.00019178,2]
[329216198,1718185848658,-500.0,0.00019178,2]
[329216200,1718185848669,-714.41,0.00019178,2]
[329216202,1718185848679,-500.0,0.00019178,2]
[329216204,1718185848690,-1266.87,0.00019178,2]
[329216206,1718185848700,-500.0,0.00019178,2]
[329216208,1718185848711,-519.53547691,0.00019178,2]
[329216210,1718185848722,-546.41144461,0.00019178,2]
[329216212,1718185848733,-1245.17,0.00019178,2]
[329216214,1718185848744,-500.0,0.00019178,2]
[329216216,1718185848755,-500.0,0.00019178,2]
[329216218,1718185848766,-624.57,0.00019178,2]
[329216220,1718185848777,-1411.92,0.00019178,2]
[329216222,1718185848787,-500.0,0.00019178,2]
[329216224,1718185848798,-534.52138468,0.00019178,2]
[329216226,1718185848808,-1034.01,0.00019178,2]
[329216228,1718185848824,-500.0,0.00019178,2]
[329216230,1718185848836,-507.19,0.00019178,2]
[329216232,1718185848847,-632.86,0.00019178,2]
[329216234,1718185848857,-769.32,0.00019178,2]
[329216236,1718185848871,-1980.14,0.00019178,2]
[329216238,1718185848882,-522.4115773,0.00019178,2]
[329216240,1718185848893,-855.8,0.00019178,2]
[329216242,1718185848903,-2845.79,0.00019178,2]
[329216244,1718185848914,-564.10113273,0.00019178,2]
[329216246,1718185848925,-500.0,0.00019178,2]
[329216248,1718185848937,-658.23,0.00019178,2]
[329216250,1718185848947,-500.0,0.00019178,2]
[329216252,1718185848958,-500.0,0.00019178,2]
[329216254,1718185848976,-500.0,0.00019178,2]
[329216256,1718185848993,-500.0,0.00019178,2]
[329216258,1718185849003,-856.59,0.00019178,2]
[329216260,1718185849013,-906.07,0.00019178,2]
[329216262,1718185849024,-736.59,0.00019178,2]
[329216264,1718185849035,-771.76,0.00019178,2]
[329216266,1718185849046,-654.87,0.00019178,2]
[329216268,1718185849056,-1448.82,0.00019178,2]
[329216270,1718185849067,-256.86249872,0.00019178,2]
[329216271,1718185849077,-500.0,0.00019178,2]
[329216278,1718185849157,-522.6913751,0.00019178,2]
[329216280,1718185849168,-500.0,0.00019178,2]
[329216282,1718185849178,-1124.45,0.00019178,2]
[329216284,1718185849189,-543.6,0.00019178,2]
[329216286,1718185849199,-486.89650489,0.00019178,2]
[329216288,1718185849209,-500.0,0.00019178,2]
[329216290,1718185849219,-500.0,0.00019178,2]
[329216292,1718185849229,-3297.81,0.00019178,2]
[329216294,1718185849239,-513.64,0.00019178,2]
[329216296,1718185849249,-2891.44,0.00019178,2]
[329216298,1718185849258,-500.0,0.00019178,2]
[329216300,1718185849268,-533.86034985,0.00019178,2]
[329216302,1718185849280,-769.71,0.00019178,2]
[329216304,1718185849291,-597.81485485,0.00019178,2]
[329216306,1718185849301,-300.0,0.00019178,2]
[329216308,1718185849312,-733.82,0.00019178,2]
[329216310,1718185849323,-524.09493124,0.00019178,2]
[329216312,1718185849333,-2443.76,0.00019178,2]
[329216314,1718185849343,-500.0,0.00019178,2]
[329216316,1718185849354,-500.0,0.00019178,2]
[329216318,1718185849364,-2001.79,0.00019178,2]
[329216320,1718185849374,-2858.77,0.00019178,2]
[329216322,1718185849385,-500.0,0.00019178,2]
[329216324,1718185849396,-500.0,0.00019178,2]
[329216326,1718185849406,-863.57,0.00019178,2]
[329216328,1718185849417,-509.460198,0.00019178,2]
[329216331,1718185849428,-5348.23,0.00019178,2]
[329216333,1718185849439,-500.0,0.00019178,2]
[329216334,1718185849450,-500.0,0.00019178,2]
[329216336,1718185849461,-500.0,0.00019178,2]
[329216339,1718185849471,-510.79050001,0.00019178,2]
[329216340,1718185849481,-1934.79,0.00019178,2]
[329216342,1718185849492,-500.0,0.00019178,2]
[329216345,1718185849503,-885.96,0.00019178,2]
[329216346,1718185849513,-350.27941631,0.00019178,2]
[329216348,1718185849524,-500.0,0.00019178,2]
[329216350,1718185849535,-500.0,0.00019178,2]
[329216351,1718185849545,-597.64,0.00019178,2]
[329216352,1718185849556,-500.0,0.00019178,2]
[329216353,1718185849566,-500.0,0.00019178,2]
[329216354,1718185849576,-1159.83,0.00019178,2]
[329216355,1718185849587,-500.0,0.00019178,2]
[329216356,1718185849597,-155.881911,0.00019178,2]
[329216357,1718185849607,-500.0,0.00019178,2]
[329216358,1718185849618,-500.0,0.00019178,2]
[329216359,1718185849628,-500.0,0.00019178,2]
[329216360,1718185849640,-994.91,0.00019178,2]
[329216361,1718185849651,-670.09,0.00019178,2]
[329216362,1718185849661,-22547.45,0.00019178,2]
[329216363,1718185849671,-15376.232298,0.000192,2]
[329216365,1718185849682,-500.0,0.0001921,2]
[329216367,1718185849692,-201.92175996,0.00019211,2]
[329216369,1718185849702,-758.3085378,0.00019214,2]
[329216371,1718185849712,-197.85680284,0.00019215,2]
[329216373,1718185849723,-154.20198686,0.00019215,2]
[329216375,1718185849733,-3453.90400289,0.00019258,2]
[329216377,1718185849744,-500.0,0.00019311,2]
[329216379,1718185849755,-3053.961618,0.00019312,2]
[329216381,1718185849765,-99397.584631,0.00019312,2]
[329216383,1718185849775,-2341.52658932,0.00019314,2]
[329216385,1718185849786,-500.0,0.00019314,2]
[329216387,1718185849797,-500.0,0.00019315,2]
[329216389,1718185849807,-500.0,0.00019315,2]
[329216391,1718185849818,-500.0,0.00019315,2]
[329216393,1718185849828,-500.0,0.00019315,2]
[329216395,1718185849838,-500.0,0.00019315,2]
[329216397,1718185849849,-500.0,0.00019315,2]
[329216399,1718185849860,-500.0,0.00019315,2]
[329216401,1718185849870,-500.0,0.00019315,2]
[329216403,1718185849880,-500.0,0.00019315,2]
[329216405,1718185849891,-172.22797197,0.00019315,2]
[329216407,1718185849901,-529.04,0.00019315,2]
[329216409,1718185849911,-500.0,0.00019315,2]
[329216411,1718185849922,-500.0,0.00019315,2]
[329216413,1718185849933,-446.43741285,0.00019315,2]
[329216415,1718185849943,-500.0,0.00019315,2]
[329216417,1718185849953,-500.0,0.00019315,2]
[329216419,1718185849964,-802.03,0.00019315,2]
[329216421,1718185849979,-500.0,0.00019315,2]
[329216423,1718185849989,-500.0,0.00019315,2]
[329216424,1718185849999,-500.0,0.00019315,2]
[329216425,1718185850010,-500.0,0.00019315,2]
[329216426,1718185850021,-500.0,0.00019315,2]
[329216427,1718185850031,-492.12501994,0.00019315,2]
[329216428,1718185850042,-517.82738552,0.00019315,2]
[329216429,1718185850054,-500.0,0.00019315,2]
[329216430,1718185850072,-500.0,0.00019315,2]
[329216431,1718185850103,-500.0,0.00019315,2]
[329216432,1718185850119,-562.3858063,0.00019315,2]
[329216433,1718185850129,-500.0,0.00019315,2]
[329216434,1718185850141,-500.0,0.00019315,2]
[329216436,1718185850152,-500.0,0.00019315,2]
[329216439,1718185850164,-500.0,0.00019315,2]
[329216441,1718185850175,-500.0,0.00019315,2]
[329216443,1718185850188,-500.0,0.00019315,2]
[329216445,1718185850199,-500.0,0.00019315,2]
[329216447,1718185850209,-500.0,0.00019315,2]
[329216449,1718185850220,-865.21,0.00019315,2]
[329216451,1718185850231,-534.59265992,0.00019315,2]
[329216453,1718185850242,-500.0,0.00019315,2]
[329216455,1718185850252,-500.0,0.00019315,2]
[329216457,1718185850263,-500.0,0.00019315,2]
[329216458,1718185850276,-500.0,0.00019315,2]
[329216461,1718185850287,-500.0,0.00019315,2]
[329216463,1718185850298,-616.47,0.00019315,2]
[329216464,1718185850309,-500.0,0.00019315,2]
[329216467,1718185850322,-500.0,0.00019315,2]
[329216469,1718185850333,-500.0,0.00019315,2]
[329216470,1718185850344,-500.0,0.00019315,2]
[329216472,1718185850354,-500.0,0.00019315,2]
[329216474,1718185850365,-500.0,0.00019315,2]
[329216477,1718185850376,-500.0,0.00019315,2]
[329216478,1718185850388,-529.06378089,0.00019315,2]
[329216480,1718185850399,-500.0,0.00019315,2]
[329216482,1718185850409,-500.0,0.00019315,2]
[329216484,1718185850420,-500.0,0.00019315,2]
[329216486,1718185850430,-500.0,0.00019315,2]
[329216489,1718185850442,-500.0,0.00019315,2]
[329216491,1718185850454,-827.08,0.00019315,2]
[329216493,1718185850465,-500.0,0.00019315,2]
[329216494,1718185850477,-641.91,0.00019315,2]
[329216497,1718185850488,-500.0,0.00019315,2]
[329216498,1718185850499,-500.0,0.00019315,2]
[329216501,1718185850510,-500.0,0.00019315,2]
[329216503,1718185850522,-500.0,0.00019315,2]
[329216505,1718185850532,-500.0,0.00019315,2]
[329216507,1718185850543,-551.46521361,0.00019315,2]
[329216509,1718185850554,-500.0,0.00019315,2]
[329216511,1718185850564,-500.0,0.00019315,2]
[329216513,1718185850575,-350.53838386,0.00019315,2]
[329216515,1718185850586,-500.0,0.00019315,2]
[329216516,1718185850597,-831.92,0.00019315,2]
[329216518,1718185850608,-500.0,0.00019315,2]
[329216520,1718185850619,-500.0,0.00019315,2]
[329216523,1718185850629,-500.0,0.00019315,2]
[329216525,1718185850642,-561.20341261,0.00019315,2]
[329216526,1718185850652,-500.0,0.00019315,2]
[329216528,1718185850663,-500.0,0.00019315,2]
[329216530,1718185850674,-500.0,0.00019315,2]
[329216533,1718185850685,-519.49681547,0.00019315,2]
[329216534,1718185850695,-500.0,0.00019315,2]
[329216536,1718185850706,-158.18643527,0.00019315,2]
[329216537,1718185850717,-176.53643373,0.00019315,2]
[329216538,1718185850728,-500.0,0.00019315,2]
[329216539,1718185850738,-500.0,0.00019315,2]
[329216540,1718185850750,-500.0,0.00019315,2]
[329216541,1718185850761,-500.0,0.00019315,2]
[329216542,1718185850772,-500.0,0.00019315,2]
[329216543,1718185850783,-500.0,0.00019315,2]
[329216544,1718185850793,-500.0,0.00019315,2]
[329216545,1718185850805,-554.1371117,0.00019315,2]
[329216546,1718185850816,-500.0,0.00019315,2]
[329216547,1718185850827,-238.03034625,0.00019315,2]
[329216548,1718185850837,-500.0,0.00019315,2]
[329216549,1718185850848,-314.58090368,0.00019315,2]
[329216550,1718185850859,-500.0,0.00019315,2]
[329216551,1718185850870,-500.0,0.00019315,2]
[329216552,1718185850882,-596.38,0.00019315,2]
[329216553,1718185850892,-500.0,0.00019315,2]
[329216554,1718185850903,-500.0,0.00019315,2]
[329216555,1718185850914,-531.88096473,0.00019315,2]
[329216556,1718185850925,-395.2103687,0.00019315,2]
[329216557,1718185850935,-500.0,0.00019315,2]
[329216558,1718185850947,-500.0,0.00019315,2]
[329216559,1718185850957,-500.0,0.00019315,2]
[329216560,1718185850969,-500.0,0.00019315,2]
[329216561,1718185850981,-500.0,0.00019315,2]
[329216562,1718185850992,-150.0,0.00019315,2]
[329216563,1718185851004,-636.69,0.00019315,2]
[329216564,1718185851016,-500.0,0.00019315,2]
[329216565,1718185851026,-500.0,0.00019315,2]
[329216566,1718185851037,-303.28106751,0.00019315,2]
[329216567,1718185851048,-500.0,0.00019315,2]
[329216568,1718185851066,-500.0,0.00019315,2]
[329216569,1718185851077,-550.81,0.00019315,2]
[329216570,1718185851109,-544.83,0.00019315,2]
[329216571,1718185851120,-500.0,0.00019315,2]
[329216572,1718185851131,-500.0,0.00019315,2]
[329216573,1718185851143,-500.0,0.00019315,2]
[329216574,1718185851154,-500.0,0.00019315,2]
[329216575,1718185851170,-500.0,0.00019315,2]
[329216576,1718185851182,-500.0,0.00019315,2]
[329216577,1718185851193,-503.59062058,0.00019315,2]
[329216578,1718185851203,-500.0,0.00019315,2]
[329216579,1718185851214,-500.0,0.00019315,2]
[329216580,1718185851225,-302.17654766,0.00019315,2]